bitfinex/quotes_SOLUSD_20250210
["timestamp","ask_amount","ask_price","bid_price","bid_amount"]
[1739146725704,1.9522,204.89,204.83,23.63793561]
[1739146725881,1.9821,204.9,204.87,0.73746671]
[1739146726080,0.03,204.9,204.87,23.63793561]
[1739146726280,0.03,204.9,204.89,0.73746671]
[1739146727710,0.03,204.9,204.85,0.73746671]
[1739146727923,0.03,204.9,204.85,22.9004689]
[1739146728124,0.03,204.9,204.83,0.73746671]
[1739146728314,0.03,204.9,204.89,23.63793561]
[1739146729398,0.03,204.9,204.89,46.53840451]
[1739146729600,0.03,205.02,205.0,0.73746671]
[1739146729817,0.03,205.02,205.0,37.89406054]
[1739146730017,0.03,205.02,205.01,0.73146631]
[1739146730697,0.03,205.02,205.01,14.14331484]
[1739146730925,0.03,205.07,205.02,14.41184853]
[1739146731098,0.03,205.07,205.06,37.89406054]
[1739146731800,0.03,205.07,205.06,38.62520601]
[1739146732612,0.2,205.15,205.14,0.73746671]
[1739146732797,0.2,205.15,205.14,38.62507726]
[1739146733211,0.2,205.15,205.14,38.45547726]
[1739146733389,0.2,205.15,205.14,39.45547726]
[1739146733596,0.2,205.15,205.14,38.45547726]
[1739146735118,6.8175,205.35,205.25,0.56786671]
[1739146735489,8.04132703,205.35,205.25,0.56786671]
[1739146735696,20.0,205.32,205.23,0.56786671]
[1739146736221,1.19442395,205.34,205.23,0.56786671]
[1739146736424,16.5586,205.33,205.23,0.56786671]
[1739146736603,20.0,205.3,205.23,0.56786671]
[1739146737504,20.0,205.3,205.21,0.56786671]
[1739146737704,20.0,205.3,205.19,0.56786671]
[1739146738521,4.8711,205.29,205.25,0.56786671]
[1739146738803,4.8711,205.29,205.2,0.56786671]
[1739146739023,24.8711,205.29,205.2,0.56786671]
[1739146739227,24.8711,205.29,205.22,0.56786671]
[1739146740427,26.8195,205.29,205.22,0.56786671]
[1739146740627,36.5618,205.29,205.14,37.15659383]
[1739146741012,36.5618,205.29,205.16,37.15659383]
[1739146741322,36.5618,205.29,205.11,1.0]
[1739146741323,16.5618,205.29,205.2,37.15659383]
[1739146741510,16.5618,205.29,205.21,0.7307166]
[1739146741720,6.8195,205.29,205.21,0.7307166]
[1739146741925,6.8195,205.29,205.18,37.15659383]
[1739146742232,20.0,205.26,205.12,37.15659383]
[1739146742442,6.8209,205.25,205.13,0.73102065]
[1739146743251,6.8209,205.25,205.18,37.15659383]
[1739146743405,1.9488,205.25,205.19,0.73070242]
[1739146743920,6.8209,205.25,205.16,37.15659383]
[1739146744113,6.8209,205.25,205.15,0.73075813]
[1739146744546,20.0,205.26,205.16,37.15659383]
[1739146744843,20.0,205.26,205.17,0.73084857]
[1739146745145,1.9482,205.31,205.24,38.15659383]
[1739146745313,1.9482,205.31,205.25,0.73041425]
[1739146745636,2.4596085,205.36,205.3,37.15659383]
[1739146745848,1.947,205.44,205.34,37.15659383]
[1739146746012,6.8146,205.44,205.35,0.73018595]
[1739146746339,6.8146,205.44,205.32,37.15659383]
[1739146746506,6.8146,205.44,205.33,0.73025284]
[1739146747208,20.0,205.41,205.3,37.15659383]
[1739146747404,20.0,205.41,205.28,0.73030391]
[1739146747605,20.99993329,205.41,205.26,0.73046469]
[1739146747916,0.99993329,205.31,205.16,37.88717255]
[1739146748106,0.99993329,205.31,205.16,0.73057872]
[1739146748304,20.0,205.27,205.13,6.6249]
[1739146748505,6.8205,205.26,205.14,37.8875761]
[1739146748912,20.0,205.23,205.14,37.15659383]
[1739146749136,20.0,205.23,205.1,37.15659383]
[1739146749431,20.0,205.23,205.14,37.15659383]
[1739146749939,20.0,205.23,205.11,37.15659383]
[1739146750116,20.0,205.23,205.11,44.71679868]
[1739146750307,20.0,205.23,205.11,7.56020485]
[1739146750532,6.8219,205.22,205.13,37.15659383]
[1739146750738,20.0,205.19,205.11,44.71679868]
[1739146750923,20.0,205.19,205.12,0.73108351]
[1739146751127,13.41184853,205.29,205.12,0.73108351]
[1739146751128,1.9483,205.3,205.19,8.2476]
[1739146751461,1.9483,205.3,205.24,37.15659383]
[1739146751758,1.9475,205.39,205.28,37.15659383]
[1739146751947,1.9475,205.39,205.29,0.73042066]
[1739146752132,4.8691,205.38,205.29,0.73042066]
[1739146752556,1.9472,205.42,205.29,0.73042066]
[1739146752760,6.8152,205.42,205.29,0.73042066]
[1739146752929,20.0,205.39,205.3,37.15659383]
[1739146753130,20.0,205.39,205.31,0.73030557]
[1739146753358,6.8152,205.42,205.31,0.73030557]
[1739146753535,20.0,205.39,205.28,37.15659383]
[1739146753735,20.0,205.39,205.29,0.7304026]
[1739146754055,20.0,205.39,205.26,37.15659383]
[1739146754237,20.0,205.39,205.27,0.73052768]
[1739146754840,4.869,205.38,205.24,37.15659383]
[1739146755036,14.607,205.38,205.25,0.73056071]
[1739146755238,14.607,205.38,205.26,37.15659383]
[1739146755438,14.607,205.38,205.27,0.73049231]
[1739146755838,14.607,205.38,205.24,37.15659383]
[1739146756049,14.607,205.38,205.25,0.73055887]
[1739146756560,20.0,205.35,205.2,37.88720286]
[1739146756762,20.0,205.28,205.14,37.15659383]
[1739146756946,20.0,205.28,205.12,46.13511116]
[1739146757333,26.3808,205.28,205.12,37.88751116]
[1739146757532,0.99993329,205.27,205.1,37.15659383]
[1739146757856,20.0,205.23,205.1,37.15659383]
[1739146758057,20.0,205.23,205.04,1.6227]
[1739146758058,20.0,205.19,205.04,37.15659383]
[1739146758370,20.0,205.19,204.97,1.0]
[1739146758371,20.0,205.14,204.97,37.88790753]
[1739146758839,20.0,205.1,204.95,37.15659383]
[1739146759042,20.0,205.1,204.93,37.15659383]
[1739146759362,20.0,205.06,204.92,0.79453779]
[1739146760073,20.0,205.06,204.92,0.063]
[1739146760773,20.0,205.08,204.93,37.15659383]
[1739146761066,20.0,205.04,204.93,0.73166774]
[1739146761269,20.0,205.04,204.92,0.063]
[1739146761749,20.0,205.04,204.95,37.15659383]
[1739146762156,20.0,205.04,204.93,37.88839603]
[1739146762865,20.0,205.0,204.92,0.063]
[1739146763374,20.0,205.0,204.93,0.063]
[1739146763843,20.0,205.0,204.94,37.15659383]
[1739146764376,20.0,205.0,204.93,0.063]
[1739146764940,6.8295,204.99,204.93,0.063]
[1739146765750,11.6992,205.14,204.97,37.15659383]
[1739146766069,20.0,205.11,205.01,37.15659383]
[1739146766366,11.6992,205.14,205.02,0.73140214]
[1739146766553,4.8751,205.12,205.03,37.15659383]
[1739146766963,4.8751,205.12,205.01,37.15659383]
[1739146767356,4.8751,205.12,204.99,37.15659383]
[1739146767665,20.0,205.1,205.0,0.73154284]
[1739146768270,20.0,205.11,205.0,0.73154284]
[1739146768473,20.0,205.11,204.99,37.15659383]
[1739146768659,20.0,205.09,204.97,37.15659383]
[1739146768867,20.0,205.09,204.93,37.21959383]
[1739146769048,20.0,205.05,204.93,37.95128044]
[1739146769248,20.0,205.05,204.93,0.063]
[1739146769565,20.0,205.04,204.93,0.063]
[1739146770151,0.99993329,205.02,204.93,0.063]
[1739146770954,20.0,204.94,204.93,0.063]
[1739146771261,6.8302,204.97,204.93,0.063]
[1739146772572,20.0,204.94,204.93,0.0001]
[1739146772954,1.9506,205.06,204.93,0.0001]
[1739146773160,20.0,205.04,204.93,0.0001]
[1739146773359,6.8272,205.06,204.93,0.0001]
[1739146773559,20.0,205.03,204.93,0.0001]
[1739146773994,20.0,205.03,204.93,0.73190266]
[1739146774197,20.0,205.03,204.93,0.0001]
[1739146775159,20.0,204.99,204.93,0.0001]
[1739146777076,6.8299,204.98,204.93,0.0001]
[1739146777475,1.9514,204.98,204.93,0.0001]
[1739146777681,6.8299,204.98,204.93,0.0001]
[1739146779204,20.0,204.97,204.93,0.0001]
[1739146779370,20.0,204.97,204.92,0.0001]
[1739146779789,20.0,204.93,204.92,0.0001]
[1739146780296,20.0,204.89,204.74,37.88881331]
[1739146780712,20.0,204.85,204.73,0.063]
[1739146781308,20.0,204.81,204.73,0.063]
[1739146783388,20.0,204.77,204.72,0.063]
[1739146784785,1.9531,204.8,204.72,0.063]
[1739146785183,1.9531,204.8,204.74,37.15659383]
[1739146785389,20.0,204.81,204.74,37.15659383]
[1739146785585,20.0,204.81,204.72,37.21959383]
[1739146785784,20.0,204.81,204.72,0.063]
[1739146786287,20.0,204.81,204.74,37.15659383]
[1739146787521,1.9531,204.8,204.72,37.95205208]
[1739146787689,6.8359,204.8,204.72,0.063]
[1739146788094,20.0,204.77,204.72,0.063]
[1739146788413,20.0,204.77,204.72,0.0001]
[1739146788587,20.0,204.76,204.72,0.0001]
[1739146789213,20.0,204.73,204.72,0.0001]
[1739146789429,33.41184853,204.73,204.72,0.0001]
[1739146789602,20.0,204.64,204.6,0.063]
[1739146790123,20.0,204.64,204.6,0.0001]
[1739146790423,20.0,204.62,204.6,0.0001]
[1739146791629,1.9549,204.61,204.6,0.0001]
[1739146792003,18.15184853,204.68,204.6,0.0001]
[1739146792004,1.9532,204.79,204.6,6.2442]
[1739146792329,1.9532,204.79,204.63,37.15659383]
[1739146792731,20.0,204.71,204.6,6.2442]
[1739146792931,20.99993329,204.71,204.6,0.0001]
[1739146793113,20.0,204.67,204.6,0.0001]
[1739146793634,20.0,204.71,204.6,0.0001]
[1739146794429,20.0,204.67,204.54,4.7539]
[1739146794932,20.0,204.65,204.52,0.063]
[1739146795409,13.41184853,204.64,204.52,0.063]
[1739146795948,20.0,204.6,204.52,0.063]
[1739146796245,6.8385,204.72,204.57,37.15659383]
[1739146796537,20.0,204.69,204.58,0.73303083]
[1739146796835,6.8385,204.72,204.61,37.15659383]
[1739146797030,6.8385,204.72,204.63,37.15659383]
[1739146797210,1.9538,204.72,204.63,37.15659383]
[1739146797618,1.9538,204.72,204.64,0.7328631]
[1739146797829,24.8839,204.76,204.64,0.7328631]
[1739146798128,4.8839,204.76,204.64,0.7328631]
[1739146798334,20.0,204.73,204.6,1.5346]
[1739146798527,20.0,204.73,204.57,37.15659383]
[1739146799030,20.0,204.69,204.55,43.41039383]
[1739146799204,20.0,204.69,204.57,37.15659383]
[1739146799409,20.0,204.69,204.55,6.2538]
[1739146799410,20.0,204.69,204.59,37.15659383]
[1739146799609,24.8839,204.76,204.6,0.73287989]
[1739146799809,20.0,204.71,204.57,37.15659383]
[1739146800038,20.0,204.67,204.55,43.41039383]
[1739146800328,20.0,204.67,204.55,6.2538]
[1739146800534,20.0,204.67,204.53,38.69119383]
[1739146800928,20.0,204.67,204.52,0.063]
[1739146800929,20.99993329,204.67,204.52,0.063]
[1739146801132,1.0,204.64,204.52,0.063]
[1739146801314,20.0,204.6,204.52,0.063]
[1739146801724,6.8402,204.67,204.53,37.15659383]
[1739146802239,20.0,204.66,204.53,37.15659383]
[1739146802427,1.9543,204.67,204.6,37.15659383]
[1739146802624,1.9543,204.67,204.62,37.15659383]
[1739146803018,1.9542,204.69,204.62,37.15659383]
[1739146803415,1.9536,204.74,204.64,37.15659383]
[1739146803925,1.9536,204.74,204.68,37.15659383]
[1739146804116,1.9536,204.74,204.66,37.15659383]
[1739146805232,4.8831,204.79,204.68,37.15659383]
[1739146805436,1.9535,204.76,204.7,37.15659383]
[1739146805733,1.9524,204.87,204.74,37.15659383]
[1739146805936,6.8335,204.87,204.74,37.15659383]
[1739146806123,20.0,204.84,204.74,37.15659383]
[1739146806322,6.8335,204.87,204.74,37.15659383]
[1739146806528,1.9524,204.87,204.76,37.15659383]
[1739146806848,1.9524,204.87,204.76,50.56844236]
[1739146807050,1.9524,204.87,204.76,37.15659383]
[1739146807350,6.8335,204.87,204.76,37.15659383]
[1739146807638,6.8335,204.87,204.73,1.549]
[1739146807639,6.8335,204.87,204.74,37.15659383]
[1739146807849,20.0,204.86,204.74,37.15659383]
[1739146808333,20.0,204.84,204.7,37.15659383]
[1739146809343,20.0,204.84,204.72,37.15659383]
[1739146809736,1.9526,204.85,204.74,37.15659383]
[1739146810039,6.8342,204.85,204.76,37.15659383]
[1739146810227,1.9526,204.85,204.76,37.15659383]
[1739146810632,6.8342,204.85,204.76,37.15659383]
[1739146811041,1.9526,204.85,204.76,37.15659383]
[1739146812335,6.8342,204.85,204.76,37.15659383]
[1739146812541,6.4823,204.98,204.8,13.41184853]
[1739146812723,1.9515,204.97,204.93,37.15659383]
[1739146813043,0.03,204.98,204.95,37.15659383]
[1739146813551,1.9507,205.05,204.95,37.15659383]
[1739146813914,4.9065,205.07,204.95,37.15659383]
[1739146814115,0.03,205.07,204.97,37.15659383]
[1739146814344,0.03,205.07,205.01,37.15659383]
[1739146814829,0.03,205.07,204.99,37.15659383]
[1739146815028,0.03,205.07,205.01,37.15659383]
[1739146815231,0.03,205.07,204.97,37.15659383]
[1739146815545,20.0,205.05,204.95,37.15659383]
[1739146815839,0.03,205.07,204.99,37.15659383]
[1739146816343,0.03,205.07,205.01,37.15659383]
[1739146816640,0.03,205.07,205.03,37.15659383]
[1739146817018,0.03,205.07,204.99,37.15659383]
[1739146817337,0.03,205.07,204.92,3.9038]
[1739146817338,0.03,205.07,204.97,37.15659383]
[1739146817524,0.03,205.07,204.99,37.15659383]
[1739146817730,0.03,205.07,205.01,37.15659383]
[1739146818417,0.03,205.07,204.99,37.15659383]
[1739146818813,0.03,205.07,205.06,37.15659383]
[1739146820027,0.03,205.07,205.05,37.15659383]
[1739146820440,0.03,205.07,205.06,37.15659383]
[1739146821361,0.03,205.07,205.06,50.56844236]
[1739146822225,0.03,205.07,205.06,37.15659383]
[1739146823955,0.03,205.07,205.06,50.56844236]
[1739146824263,0.03,205.07,205.06,51.2995432]
[1739146824463,0.03,205.07,205.06,37.88769467]
[1739146824628,0.03,205.07,205.04,37.15659383]
[1739146825025,0.03,205.07,205.06,37.15659383]
[1739146825968,0.03,205.07,205.06,37.88784522]
[1739146826748,0.03,205.07,205.06,37.15659383]
[1739146826968,0.03,205.07,205.04,37.15659383]
[1739146827985,0.03,205.07,205.03,0.73125295]
[1739146827986,0.03,205.07,205.06,37.15659383]
[1739146831871,0.03,205.07,205.05,37.15659383]
[1739146832050,0.03,205.07,205.03,37.15659383]
[1739146832245,0.03,205.07,205.04,37.88799372]
[1739146832491,0.03,205.07,205.04,37.15659383]
[1739146832657,0.03,205.07,205.05,37.15659383]
[1739146834157,0.03,205.07,205.02,0.7313615]
[1739146834158,0.03,205.07,205.02,37.15659383]
[1739146834573,0.03,205.07,205.0,0.73139349]
[1739146834574,0.03,205.07,205.03,37.15659383]
[1739146834890,0.03,205.07,205.06,37.15659383]
[1739146835180,7.8417,205.27,205.06,88.45610719]
[1739146835181,20.0,205.24,205.06,88.45610719]
[1739146835359,20.0,205.24,205.17,37.15659383]
[1739146835565,1.9491,205.22,205.15,37.15659383]
[1739146836063,20.0,205.24,205.15,37.15659383]
[1739146836249,4.8728,205.22,205.13,37.15659383]
[1739146836449,4.8728,205.22,205.07,0.73111472]
[1739146836450,4.8728,205.22,205.11,37.15659383]
[1739146837069,20.0,205.2,205.09,37.15659383]
[1739146837270,20.0,205.18,205.05,37.15659383]
[1739146837688,20.0,205.14,205.05,37.15659383]
[1739146838466,1.9499,205.13,205.07,37.15659383]
[1739146838859,1.9499,205.13,205.05,37.15659383]
[1739146839079,1.9499,205.13,205.03,37.15659383]
[1739146840080,20.0,205.1,205.03,37.15659383]
[1739146840289,20.0,205.1,205.01,0.063]
[1739146840584,20.0,205.1,205.01,37.21959383]
[1739146841087,6.8248,205.13,205.03,37.15659383]
[1739146841590,6.8248,205.13,205.01,37.21959383]
[1739146841785,20.0,205.1,205.01,0.063]
[1739146842282,6.8262,205.09,205.01,0.063]
[1739146842887,20.0,205.06,205.01,0.063]
[1739146844068,20.0,205.06,204.9,37.15659383]
[1739146844387,20.0,204.98,204.88,37.15659383]
[1739146845399,1.6394,204.97,204.86,37.15659383]
[1739146846165,20.0,204.92,204.84,0.063]
[1739146846868,20.0,204.88,204.84,0.063]
[1739146848004,22.16913329,204.95,204.84,0.063]
[1739146848307,1.0,204.94,204.84,0.063]
[1739146848609,22.16913329,204.95,204.84,0.063]
[1739146848897,20.0,204.91,204.84,0.063]
[1739146849576,13.41184853,204.94,204.84,0.063]
[1739146849577,11.4108,204.95,204.84,0.063]
[1739146849778,11.4108,204.95,204.86,37.15659383]
[1739146850498,1.9516,204.95,204.88,37.15659383]
[1739146850871,1.9516,204.95,204.86,37.15659383]
[1739146851069,1.9516,204.95,204.84,37.21959383]
[1739146851070,6.8308,204.95,204.84,37.21959383]
[1739146851493,20.0,204.92,204.84,37.21959383]
[1739146852773,1.9517,204.94,204.88,37.15659383]
[1739146853272,1.9514,204.98,204.9,37.15659383]
[1739146853602,6.8299,204.98,204.88,37.15659383]
[1739146853787,16.5869,204.98,204.84,37.21959383]
[1739146853985,20.0,204.94,204.84,37.21959383]
[1739146854302,20.0,204.94,204.86,37.15659383]
[1739146854503,20.0,204.96,204.84,37.21959383]
[1739146854677,20.0,204.94,204.84,37.21959383]
[1739146855303,20.0,204.95,204.86,37.15659383]
[1739146855689,20.0,204.95,204.84,37.21959383]
[1739146855892,20.0,204.94,204.84,37.21959383]
[1739146856815,6.8315,204.93,204.84,37.21959383]
[1739146856978,20.0,204.9,204.84,0.063]
[1739146858923,6.8328,204.89,204.84,0.063]
[1739146861015,20.0,204.86,204.76,37.15659383]
[1739146861913,20.0,204.86,204.8,37.15659383]
[1739146862320,6.8328,204.89,204.82,37.15659383]
[1739146862686,11.7096,204.96,204.82,37.15659383]
[1739146863323,0.99993329,204.94,204.8,37.15659383]
[1739146863522,13.41184853,204.95,204.78,37.15659383]
[1739146863523,14.41178182,204.92,204.78,37.15659383]
[1739146863710,20.0,204.89,204.78,37.15659383]
[1739146864613,20.0,204.89,204.8,37.15659383]
[1739146864813,20.0,204.85,204.8,37.15659383]
[1739146865201,20.0,204.85,204.75,37.15659383]
[1739146865715,20.0,204.85,204.75,22.92201469]
[1739146866732,6.8345,204.84,204.75,22.92201469]
[1739146867322,20.0,204.81,204.72,0.063]
[1739146867516,1.9527,204.84,204.77,22.92201469]
[1739146867712,1.9527,204.84,204.79,22.92201469]
[1739146868319,4.8801,204.92,204.83,22.92201469]
[1739146868510,6.6241,204.94,204.85,22.92201469]
[1739146868718,1.9515,204.97,204.91,22.92201469]
[1739146869316,1.9513,204.99,204.93,22.92201469]
[1739146869512,1.9513,204.99,204.95,22.92201469]
[1739146869804,1.9513,204.99,204.9,22.92201469]
[1739146869805,1.9811,205.01,204.97,22.92201469]
[1739146870303,1.9811,205.01,204.95,22.92201469]
[1739146870706,6.8589,205.01,204.93,22.92201469]
[1739146871442,0.03,204.96,204.89,22.92201469]
[1739146871646,0.03,204.96,204.9,37.19631443]
[1739146872334,0.03,204.96,204.88,37.19631443]
[1739146872921,0.03,204.96,204.9,37.19631443]
[1739146873719,0.03,204.96,204.94,37.19631443]
[1739146874538,0.03,204.96,204.91,37.19631443]
[1739146875035,0.03,204.96,204.89,37.19631443]
[1739146876454,0.03,204.96,204.87,37.19631443]
[1739146876643,0.03,204.96,204.85,37.19631443]
[1739146877442,20.0,204.95,204.85,37.19631443]
[1739146878237,20.0,204.93,204.83,37.19631443]
[1739146878554,26.6241,204.93,204.79,37.19631443]
[1739146878724,26.6241,204.93,204.78,37.19631443]
[1739146878915,20.0,204.89,204.76,37.19631443]
[1739146879445,13.41184853,204.88,204.75,0.063]
[1739146879626,20.0,204.85,204.75,0.063]
[1739146880422,20.0,204.81,204.75,0.063]
[1739146882130,20.0,204.77,204.72,0.063]
[1739146884358,1.9535,204.76,204.72,0.063]
[1739146884532,20.0,204.73,204.64,42.08631443]
[1739146884926,20.0,204.73,204.63,0.063]
[1739146886338,20.0,204.69,204.63,0.063]
[1739146888461,20.0,204.65,204.63,0.063]
[1739146888758,20.0,204.64,204.63,0.0001]
[1739146889341,13.4639,204.68,204.63,0.0001]
[1739146889767,20.0,204.65,204.63,0.0001]
[1739146890559,1.9546,204.64,204.63,0.0001]
[1739146890753,20.0,204.65,204.63,0.0001]
[1739146890969,1.9544,204.67,204.63,0.0001]
[1739146891770,4.8847,204.73,204.64,37.19631443]
[1739146891771,1.9539,204.71,204.64,37.19631443]
[1739146891962,1.9539,204.71,204.66,37.19631443]
[1739146892161,1.9535,204.76,204.68,37.19631443]
[1739146892464,1.9535,204.76,204.7,37.19631443]
[1739146893472,6.8372,204.76,204.64,37.19631443]
[1739146893763,20.0,204.73,204.63,0.0001]
[1739146894439,6.8398,204.68,204.63,0.0001]
[1739146894643,20.0,204.65,204.63,0.0001]
[1739146895967,20.0,204.64,204.63,0.0001]
[1739146896544,21.9546,204.64,204.63,0.0001]
[1739146898767,36.36644853,204.64,204.63,0.0001]
[1739146899064,36.36644853,204.64,204.57,0.063]
[1739146899065,20.0,204.58,204.57,0.0001]
[1739146899243,20.0,204.58,204.54,0.063]
[1739146899244,20.0,204.58,204.54,0.0001]
[1739146899643,20.0,204.57,204.54,0.0001]
[1739146899859,20.0,204.56,204.54,0.0001]
[1739146900063,24.34,204.57,204.54,0.0001]
[1739146900666,1.9554,204.56,204.54,0.0001]
[1739146901260,20.0,204.55,204.54,0.0001]
[1739146902167,1.9554,204.56,204.54,0.0001]
[1739146902650,21.9555,204.55,204.54,0.0001]
[1739146905263,6.2954,204.57,204.54,0.0001]
[1739146905577,20.0,204.55,204.54,0.0001]
[1739146905869,20.0,204.54,204.52,0.0431]
[1739146906259,20.0,204.54,204.51,0.0001]
[1739146906956,1.9557,204.53,204.51,0.0001]
[1739146908387,20.0,204.52,204.51,0.0001]
[1739146908680,20.0,204.52,204.42,0.063]
[1739146908860,1.9557,204.52,204.42,0.063]
[1739146909069,20.0,204.49,204.42,0.063]
[1739146910180,20.0,204.48,204.42,0.0001]
[1739146910877,20.0,204.44,204.42,0.0001]
[1739146912759,20.0,204.44,204.36,0.0001]
[1739146912951,20.0,204.4,204.36,0.0001]
[1739146914688,20.0,204.39,204.36,0.0001]
[1739146914986,1.9571,204.38,204.36,0.0001]
[1739146915580,20.0,204.34,204.33,0.0001]
[1739146916291,33.41184853,204.37,204.25,6.0791]
[1739146916462,20.0,204.37,204.24,1.514]
[1739146916661,20.0,204.37,204.24,24.53627071]
[1739146917086,20.0,204.35,204.24,24.53627071]
[1739146917390,6.8502,204.37,204.26,23.02227071]
[1739146917755,4.3,204.36,204.26,23.02227071]
[1739146917956,20.0,204.34,204.26,23.02227071]
[1739146918160,20.0,204.34,204.24,24.53627071]
[1739146918584,1.9572,204.37,204.26,23.02227071]
[1739146918763,1.9572,204.37,204.28,23.02227071]
[1739146919259,20.0,204.35,204.26,23.02227071]
[1739146919492,20.0,204.35,204.24,24.53627071]
[1739146920289,20.0,204.35,204.26,23.02227071]
[1739146921081,20.0,204.35,204.26,0.063]
[1739146921293,16.6389,204.34,204.26,0.063]
[1739146921590,17.6389,204.34,204.26,0.063]
[1739146922992,16.6389,204.34,204.26,0.063]
[1739146925313,6.8513,204.34,204.26,23.08527071]
[1739146925472,6.8513,204.34,204.26,0.063]
[1739146925671,1.9575,204.34,204.31,23.02227071]
[1739146926790,4.3,204.4,204.26,0.063]
[1739146926791,4.8918,204.43,204.33,23.02227071]
[1739146927165,4.8918,204.43,204.35,23.02227071]
[1739146927400,20.0,204.42,204.31,29.05597071]
[1739146928074,20.0,204.42,204.33,23.02227071]
[1739146928480,20.0,204.41,204.31,29.05597071]
[1739146928694,20.0,204.41,204.31,6.0337]
[1739146928894,20.0,204.4,204.28,23.02227071]
[1739146929098,1.0,204.42,204.26,29.11897071]
[1739146929099,20.0,204.36,204.26,29.11897071]
[1739146929400,1.9574,204.35,204.26,29.11897071]
[1739146929597,1.9574,204.35,204.3,23.02227071]
[1739146930083,1.957,204.39,204.34,23.02227071]
[1739146930286,1.9566,204.43,204.38,23.02227071]
[1739146930491,1.9566,204.43,204.42,23.02227071]
[1739146930886,21.9565,204.45,204.41,23.02227071]
[1739146931084,1.9565,204.45,204.43,23.02227071]
[1739146931304,24.8906,204.48,204.43,23.02227071]
[1739146931481,1.9559,204.5,204.43,23.02227071]
[1739146931802,20.0,204.49,204.43,23.02227071]
[1739146932002,1.9559,204.5,204.47,23.02227071]
[1739146932305,0.03,204.53,204.49,23.02227071]
[1739146932512,1.9857,204.53,204.49,23.02227071]
[1739146932808,26.8749,204.53,204.47,23.02227071]
[1739146933101,26.8749,204.53,204.41,23.02227071]
[1739146933513,0.03,204.43,204.41,23.02227071]
[1739146933714,0.03,204.43,204.41,37.37770627]
[1739146934013,0.03,204.43,204.39,6.0337]
[1739146934014,0.03,204.43,204.42,37.37770627]
[1739146935012,0.03,204.43,204.42,51.5231681]
[1739146935394,0.03,204.53,204.43,13.41184853]
[1739146935595,0.03,204.53,204.5,37.37770627]
[1739146936109,0.03,204.53,204.44,0.73342751]
[1739146936110,0.03,204.53,204.52,37.37770627]
[1739146937487,0.03,204.53,204.5,37.37770627]
[1739146938416,0.03,204.53,204.52,37.37770627]
[1739146940525,0.03,204.53,204.52,56.8232548]
[1739146940741,0.03,204.53,204.52,57.55641294]
[1739146941026,0.03,204.55,204.53,13.41184853]
[1739146941197,0.03,204.55,204.54,38.11075009]
[1739146942315,0.03,204.55,204.54,51.52259862]
[1739146943119,0.03,204.55,204.54,55.43379862]
[1739146943330,0.03,204.55,204.54,51.52259862]
[1739146944108,0.03,204.55,204.54,37.37770627]
[1739146945599,0.03,204.55,204.54,50.7895548]
[1739146946109,0.03,204.55,204.54,55.7007548]
[1739146946420,1.9544,204.66,204.57,13.41184853]
[1739146946609,4.8854,204.7,204.65,37.37770627]
[1739146946808,4.8854,204.7,204.64,37.37770627]
[1739146946809,20.0,204.69,204.64,37.37770627]
[1739146947117,20.0,204.69,204.66,37.37770627]
[1739146947303,20.0,204.71,204.68,37.37770627]
[1739146947807,1.9538,204.72,204.68,37.37770627]
[1739146948005,0.03,204.74,204.71,37.37770627]
[1739146948220,0.03,204.74,204.73,37.37770627]
[1739146949222,0.03,204.74,204.73,50.7895548]
[1739146949724,0.03,204.74,204.73,51.52194894]